bitfinex/quotes_SOLUSD_20230110
["timestamp","ask_amount","ask_price","bid_price","bid_amount"]
[1673388676843,17.0,16.329,16.319,20.0]
[1673388678738,17.0,16.329,16.328,18.701762]
[1673388680103,20.0,16.33,16.328,18.701762]
[1673388680308,2095.49362507,16.332,16.328,18.701762]
[1673388680629,2049.54362507,16.332,16.328,18.701762]
[1673388681032,2029.54362507,16.332,16.328,18.701762]
[1673388681247,2029.54362507,16.332,16.329,20.0]
[1673388682728,20.0,16.332,16.328,18.701762]
[1673388682943,17.0,16.331,16.328,18.701762]
[1673388683134,20.0,16.33,16.328,18.701762]
[1673388684094,20.0,16.332,16.328,18.701762]
[1673388686020,65.899706,16.333,16.328,18.701762]
[1673388686230,65.899706,16.333,16.329,20.0]
[1673388691669,2056.01042507,16.337,16.33,20.0]
[1673388691903,1935.98172507,16.337,16.332,20.0]
[1673388692211,20.0,16.348,16.332,20.0]
[1673388692427,45.9,16.347,16.332,20.0]
[1673388692626,45.9,16.347,16.329,20.0]
[1673388692627,20.0,16.346,16.329,20.0]
[1673388692849,20.0,16.344,16.329,20.0]
[1673388693166,20.0,16.342,16.329,20.0]
[1673388696197,20.0,16.348,16.331,20.0]
[1673388696415,20.0,16.348,16.332,17.0]
[1673388696617,20.0,16.348,16.333,20.0]
[1673388697139,65.9,16.348,16.333,20.0]
[1673388697350,65.9,16.348,16.331,20.0]
[1673388697351,65.9,16.348,16.332,20.0]
[1673388698215,65.9,16.348,16.333,17.0]
[1673388698408,65.9,16.348,16.334,20.0]
[1673388698620,65.9,16.348,16.335,20.0]
[1673388699161,65.9,16.348,16.332,20.0]
[1673388699869,20.0,16.346,16.332,20.0]
[1673388700519,20.0,16.346,16.333,17.0]
[1673388700733,20.0,16.346,16.334,20.0]
[1673388701140,20.0,16.346,16.332,20.0]
[1673388701774,65.91,16.346,16.332,20.0]
[1673388703969,65.91,16.346,16.331,20.0]
[1673388705246,65.91,16.346,16.332,2.966]
[1673388706174,65.91,16.346,16.329,48.48521506]
[1673388706390,65.91,16.346,16.328,18.701762]
[1673388706602,248.61,16.346,16.328,18.701762]
[1673388706811,20.0,16.344,16.328,18.701762]
[1673388707035,62.91,16.343,16.328,18.701762]
[1673388707559,20.0,16.342,16.328,18.701762]
[1673388707796,20.0,16.342,16.329,20.0]
[1673388707797,62.92,16.341,16.329,20.0]
[1673388707960,20.0,16.34,16.329,20.0]
[1673388708171,45.93,16.339,16.329,20.0]
[1673388708596,20.0,16.338,16.328,18.701762]
[1673388708805,45.93,16.337,16.328,18.701762]
[1673388709857,45.93,16.337,16.329,20.0]
[1673388710089,20.0,16.336,16.329,20.0]
[1673388710285,45.94,16.335,16.329,20.0]
[1673388712292,20.0,16.338,16.329,20.0]
[1673388712685,45.93,16.337,16.329,20.0]
[1673388714691,45.93,16.339,16.329,20.0]
[1673388715443,45.92,16.341,16.329,20.0]
[1673388715761,45.92,16.341,16.33,20.0]
[1673388715955,45.92,16.341,16.331,20.0]
[1673388720182,1874.90172507,16.347,16.331,20.0]
[1673388720183,45.91,16.343,16.331,20.0]
[1673388720400,1874.90172507,16.347,16.332,17.0]
[1673388720711,20.0,16.347,16.334,22.64261293]
[1673388720921,20.0,16.347,16.336,2.64261293]
[1673388721740,20.0,16.347,16.336,22.64261293]
[1673388721950,20.0,16.347,16.337,20.0]
[1673388722701,45.9,16.348,16.337,20.0]
[1673388722902,45.759389,16.348,16.337,22.64261293]
[1673388723119,45.9,16.349,16.337,22.64261293]
[1673388724473,20.0,16.348,16.337,20.0]
[1673388724683,20.0,16.346,16.336,2.64261293]
[1673388724892,20.0,16.346,16.335,22.64261293]
[1673388730689,45.9,16.347,16.335,22.64261293]
[1673388730907,20.0,16.346,16.335,22.64261293]
[1673388734683,45.9,16.347,16.335,22.64261293]
[1673388736053,20.0,16.346,16.335,22.64261293]
[1673388739417,45.91,16.345,16.335,22.64261293]
[1673388740676,20.0,16.346,16.335,22.64261293]
[1673388741727,20.0,16.346,16.335,20.0]
[1673388742261,20.0,16.346,16.336,20.0]
[1673388742471,20.0,16.346,16.337,1.66262476]
[1673388743299,20.0,16.346,16.336,1.66262476]
[1673388743620,45.9,16.347,16.336,1.66262476]
[1673388745828,45.9,16.349,16.336,1.66262476]
[1673388746027,20.0,16.35,16.336,38.66262476]
[1673388746351,20.0,16.35,16.338,20.0]
[1673388746541,45.9,16.349,16.338,20.0]
[1673388746752,45.9,16.349,16.339,20.0]
[1673388749686,45.89,16.351,16.339,20.0]
[1673388753192,20.0,16.35,16.338,20.0]
[1673388753401,45.9,16.349,16.338,20.0]
[1673388755828,20.0,16.348,16.338,20.0]
[1673388756143,45.9,16.347,16.338,20.0]
[1673388757710,45.9,16.349,16.338,20.0]
[1673388758048,45.9,16.349,16.338,67.91888173]
[1673388759182,356.77900422,16.378,16.339,8.167]
[1673388759183,45.87,16.36,16.339,8.167]
[1673388759398,45.87,16.36,16.34,57.0]
[1673388759607,45.87,16.36,16.342,20.0]
[1673388759814,45.87,16.36,16.343,45.739]
[1673388760040,20.0,16.359,16.344,20.0]
[1673388760254,45.87,16.358,16.345,37.0]
[1673388760441,45.87,16.358,16.346,20.0]
[1673388760643,45.87,16.358,16.348,2.88980581]
[1673388760861,20.0,16.357,16.348,2.88980581]
[1673388761299,20.0,16.357,16.345,20.0]
[1673388761487,45.88,16.356,16.33,20.0]
[1673388761707,45.88,16.356,16.329,20.0]
[1673388761708,219.7,16.355,16.329,20.0]
[1673388761912,214.25753623,16.352,16.328,18.701762]
[1673388762118,182.7,16.35,16.328,18.701762]
[1673388762336,182.7,16.348,16.328,18.701762]
[1673388762539,182.7,16.346,16.328,18.701762]
[1673388762749,182.7,16.344,16.328,18.701762]
[1673388762959,20.0,16.341,16.328,18.701762]
[1673388763173,245.62,16.34,16.328,6.2e-05]
[1673388763387,20.0,16.339,16.309,20.0]
[1673388763594,20.0,16.337,16.309,20.0]
[1673388763911,20.0,16.334,16.309,20.0]
[1673388764111,62.94,16.333,16.309,20.0]
[1673388764324,20.0,16.332,16.314,5.76599569]
[1673388764553,62.95,16.331,16.314,5.76599569]
[1673388765078,20.0,16.33,16.314,5.76599569]
[1673388765294,45.95,16.329,16.314,5.76599569]
[1673388765483,45.95,16.329,16.319,20.0]
[1673388766125,20.0,16.328,16.319,20.0]
[1673388766450,45.96,16.327,16.314,5.76599569]
[1673388766973,20.0,16.328,16.315,12.37542575]
[1673388767586,20.0,16.328,16.319,20.0]
[1673388769053,45.95,16.33,16.319,20.0]
[1673388769269,45.95,16.331,16.319,20.0]
[1673388769906,20.0,16.33,16.31,83.84466575]
[1673388770146,20.0,16.33,16.312,20.0]
[1673388770436,20.0,16.33,16.313,13.0]
[1673388770657,20.0,16.33,16.313,19.29504395]
[1673388770847,20.0,16.33,16.314,6.29504395]
[1673388771378,20.0,16.33,16.315,20.0]
[1673388771808,20.0,16.328,16.315,20.0]
[1673388772020,45.96,16.327,16.313,20.0]
[1673388772457,45.96,16.327,16.314,20.0]
[1673388772752,45.96,16.328,16.316,20.0]
[1673388772981,45.96,16.328,16.317,20.0]
[1673388773192,45.95,16.329,16.317,20.0]
[1673388773603,305.66277852,16.357,16.317,20.0]
[1673388773604,45.93,16.336,16.317,25.9421157]
[1673388773804,45.93,16.339,16.318,37.0]
[1673388774036,45.92,16.34,16.32,20.0]
[1673388774248,45.91,16.344,16.322,20.0]
[1673388774552,45.91,16.344,16.324,20.0]
[1673388774770,45.91,16.344,16.326,20.0]
[1673388774973,45.91,16.344,16.327,42.417]
[1673388775185,20.0,16.354,16.328,20.0]
[1673388775186,45.9,16.348,16.328,20.0]
[1673388775399,45.9,16.348,16.33,20.0]
[1673388775718,45.9,16.348,16.332,20.0]
[1673388775917,45.9,16.348,16.333,17.0]
[1673388776129,45.9,16.348,16.334,20.0]
[1673388776663,45.9,16.348,16.335,20.0]
[1673388776857,20.0,16.352,16.336,20.0]
[1673388777063,45.89,16.351,16.336,20.0]
[1673388777801,20.0,16.35,16.336,20.0]
[1673388778006,20.0,16.348,16.336,20.0]
[1673388778222,45.9,16.347,16.334,20.0]
[1673388778433,17.0,16.346,16.332,20.0]
[1673388778662,45.9,16.347,16.333,11.35]
[1673388778854,45.9,16.347,16.333,17.2921157]
[1673388779067,45.9,16.347,16.334,20.0]
[1673388779697,45.9,16.347,16.332,20.0]
[1673388779911,17.0,16.346,16.333,14.18]
[1673388780233,17.0,16.346,16.334,20.0]
[1673388780759,45.9,16.347,16.333,20.0]
[1673388780952,45.9,16.347,16.333,25.9421157]
[1673388782001,20.0,16.348,16.333,25.9421157]
[1673388782212,45.9,16.347,16.333,25.9421157]
[1673388782885,37.0,16.346,16.333,20.0]
[1673388783075,45.91,16.345,16.332,20.0]
[1673388783287,17.0,16.344,16.331,20.0]
[1673388783601,45.91,16.343,16.331,20.0]
[1673388783916,17.0,16.342,16.331,25.9421157]
[1673388784106,17.0,16.342,16.327,20.0]
[1673388784107,65.92,16.341,16.327,20.0]
[1673388784315,17.0,16.34,16.327,20.0]
[1673388784526,45.93,16.339,16.327,20.0]
[1673388785161,45.92,16.34,16.328,5.9421157]
[1673388785385,20.0,16.344,16.328,5.9421157]
[1673388785682,20.0,16.342,16.328,5.9421157]
[1673388785893,45.92,16.341,16.328,5.9421157]
[1673388786655,45.92,16.341,16.329,20.0]
[1673388787068,45.91,16.343,16.33,20.0]
[1673388787277,20.0,16.344,16.33,20.0]
[1673388787507,45.91,16.343,16.331,20.0]
[1673388792018,20.0,16.342,16.331,20.0]
[1673388792212,45.92,16.341,16.331,20.0]
[1673388792624,45.91,16.343,16.331,20.0]
[1673388795561,20.0,16.342,16.331,20.0]
[1673388795773,45.92,16.341,16.331,20.0]
[1673388796718,45.91,16.343,16.331,20.0]
[1673388799561,20.0,16.344,16.331,20.0]
[1673388799772,45.91,16.343,16.331,20.0]
[1673388802929,45.91,16.345,16.332,5.9421157]
[1673388803890,20.0,16.344,16.332,5.9421157]
[1673388804100,45.91,16.343,16.332,5.9421157]
[1673388804499,20.0,16.344,16.332,5.9421157]
[1673388804709,45.91,16.343,16.332,5.9421157]
[1673388805763,45.91,16.346,16.334,20.0]
[1673388805983,45.9,16.349,16.335,20.0]
[1673388806186,17.0,16.348,16.335,20.0]
[1673388806401,45.9,16.347,16.335,20.0]
[1673388806606,17.0,16.346,16.335,20.0]
[1673388806833,45.9,16.347,16.335,25.9421157]
[1673388807032,254.0164,16.353,16.335,25.9421157]
[1673388807033,45.9,16.349,16.335,25.9421157]
[1673388807232,17.0,16.348,16.336,20.0]
[1673388807437,45.9,16.347,16.337,20.0]
[1673388809868,20.0,16.345,16.337,20.0]
[1673388810204,45.91,16.344,16.332,20.0]
[1673388810389,45.91,16.344,16.33,20.0]
[1673388810594,45.91,16.344,16.331,20.0]
[1673388810810,45.91,16.344,16.332,20.0]
[1673388814274,20.0,16.348,16.333,25.9421157]
[1673388814482,45.9,16.347,16.333,25.9421157]
[1673388814692,45.9,16.347,16.334,25.9421157]
[1673388815128,20.0,16.346,16.335,5.9421157]
[1673388815323,45.91,16.345,16.336,20.0]
[1673388815743,45.91,16.345,16.336,25.9421157]
[1673388818380,37.0,16.344,16.336,20.0]
[1673388818593,45.91,16.343,16.332,25.9421157]
[1673388819006,45.91,16.343,16.333,5.9421157]
[1673388819235,45.91,16.343,16.334,20.0]
[1673388819863,45.91,16.343,16.335,5.9421157]
[1673388820183,45.91,16.343,16.336,20.0]
[1673388820900,45.91,16.343,16.326,138.1841]
[1673388820901,37.0,16.342,16.326,138.1841]
[1673388821108,65.92,16.341,16.329,5.9421157]
[1673388821312,17.0,16.34,16.329,5.9421157]
[1673388821545,45.93,16.339,16.329,5.9421157]
[1673388821752,17.0,16.338,16.329,5.9421157]
[1673388821967,45.93,16.337,16.329,5.9421157]
[1673388823224,45.93,16.337,16.33,20.0]
[1673388828377,45.93,16.337,16.328,20.0]
[1673388828698,45.93,16.337,16.329,5.9421157]
[1673388828903,45.93,16.337,16.33,20.0]
[1673388830580,20.0,16.336,16.33,20.0]
[1673388830905,20.0,16.334,16.33,20.0]
[1673388831107,20.0,16.334,16.327,20.0]
[1673388831108,45.94,16.333,16.327,20.0]
[1673388831851,45.94,16.333,16.325,20.0]
[1673388832066,45.94,16.334,16.325,20.0]
[1673388832385,45.94,16.334,16.325,5.9421157]
[1673388832575,45.94,16.334,16.324,20.0]
[1673388832576,45.94,16.334,16.326,5.9421157]
[1673388833207,45.94,16.334,16.327,20.0]
[1673388833531,45.92,16.34,16.328,5.9421157]
[1673388833745,17.0,16.339,16.329,20.0]
[1673388833938,45.93,16.338,16.329,20.0]
[1673388834148,45.93,16.338,16.329,25.9421157]
[1673388834361,45.92,16.34,16.329,25.9421157]
[1673388834571,45.92,16.34,16.33,20.0]
[1673388835406,45.92,16.34,16.331,5.9421157]
[1673388835623,45.92,16.34,16.332,20.0]
[1673388836152,45.92,16.34,16.332,25.9421157]
[1673388836371,45.92,16.341,16.332,25.9421157]
[1673388838054,20.0,16.34,16.332,20.0]
[1673388838262,62.93,16.339,16.327,20.0]
[1673388838479,20.0,16.338,16.327,20.0]
[1673388838685,45.93,16.337,16.327,20.0]
[1673388839310,45.93,16.337,16.328,20.0]
[1673388839511,45.93,16.337,16.329,20.0]
[1673388840669,17.0,16.336,16.324,20.0]
[1673388840880,45.94,16.335,16.324,25.9421157]
[1673388841290,45.93,16.337,16.324,25.9421157]
[1673388841506,17.0,16.334,16.324,20.0]
[1673388841716,17.0,16.335,16.324,20.0]
[1673388841932,17.0,16.336,16.324,20.0]
[1673388842362,17.0,16.336,16.325,5.9421157]
[1673388842572,45.94,16.335,16.326,20.0]
[1673388843109,17.0,16.336,16.326,5.9421157]
[1673388843417,17.0,16.336,16.327,20.0]
[1673388844033,17.0,16.336,16.325,20.0]
[1673388844259,45.94,16.335,16.325,20.0]
[1673388844669,45.94,16.335,16.326,5.9421157]
[1673388844876,45.93,16.337,16.326,5.9421157]
[1673388845096,45.93,16.339,16.328,20.0]
[1673388845307,45.92,16.341,16.328,20.0]
[1673388845508,45.92,16.341,16.329,20.0]
[1673388846038,17.0,16.34,16.329,20.0]
[1673388846240,45.93,16.339,16.329,20.0]
[1673388847726,45.93,16.339,16.329,25.9421157]
[1673388849826,17.0,16.338,16.329,25.9421157]
[1673388850461,62.93,16.339,16.329,25.9421157]
[1673388850988,62.93,16.339,16.329,20.0]
[1673388851196,62.93,16.339,16.328,5.9421157]
[1673388851517,62.93,16.339,16.329,20.0]
[1673388852017,62.93,16.339,16.329,25.9421157]
[1673388852871,62.93,16.339,16.329,20.0]
[1673388853084,62.93,16.339,16.329,25.9421157]
[1673388853281,62.93,16.339,16.33,20.0]
[1673388853490,45.93,16.339,16.33,20.0]
[1673388853705,45.91,16.343,16.331,20.0]
[1673388854140,45.91,16.343,16.332,20.0]
[1673388854665,45.91,16.343,16.333,5.9421157]
[1673388854982,45.91,16.343,16.332,20.0]
[1673388855172,20.0,16.342,16.332,20.0]
[1673388855598,45.92,16.341,16.332,20.0]
[1673388858342,45.92,16.341,16.333,5.9421157]
[1673388858570,45.92,16.342,16.333,5.9421157]
[1673388860345,45.91,16.345,16.334,20.0]
[1673388860763,45.91,16.345,16.335,5.9421157]
[1673388861159,20.0,16.349,16.336,20.0]
[1673388861160,45.91,16.346,16.336,20.0]
[1673388861381,45.91,16.346,16.337,1.57209603]
[1673388861581,20.0,16.345,16.337,7.51421173]
[1673388861915,62.91,16.344,16.336,20.0]
[1673388862130,62.91,16.344,16.335,20.0]
[1673388862537,20.0,16.343,16.335,20.0]
[1673388863368,20.0,16.343,16.329,5.9421157]
[1673388863369,20.0,16.341,16.329,5.9421157]
[1673388863694,20.0,16.339,16.329,5.9421157]
[1673388863911,45.93,16.338,16.329,5.9421157]
[1673388864944,45.93,16.338,16.33,20.0]
[1673388866542,45.93,16.338,16.329,20.0]
[1673388868016,45.93,16.338,16.329,25.9421157]
[1673388868855,45.93,16.338,16.33,20.0]
[1673388869072,45.92,16.34,16.33,20.0]
[1673388871902,45.92,16.34,16.329,40.0]
[1673388871903,45.92,16.34,16.329,20.0]
[1673388872426,20.0,16.339,16.329,20.0]
[1673388872624,45.93,16.338,16.329,20.0]
[1673388873248,20.0,16.337,16.329,20.0]
[1673388874632,45.93,16.338,16.329,20.0]
[1673388878202,20.0,16.337,16.329,20.0]
[1673388883463,45.93,16.338,16.329,20.0]
[1673388891243,45.93,16.338,16.329,25.9421157]
[1673388891555,20.0,16.339,16.329,25.9421157]
[1673388891786,45.93,16.338,16.329,25.9421157]
[1673388892079,20.0,16.337,16.329,20.0]
[1673388892280,62.93,16.336,16.327,20.0]
[1673388892481,62.93,16.336,16.323,43.42382852]
[1673388892482,20.0,16.335,16.324,20.0]
[1673388893881,62.93,16.336,16.324,20.0]
[1673388894497,62.93,16.336,16.324,63.42382852]
[1673388896592,62.93,16.336,16.324,43.42382852]
[1673388896819,62.93,16.336,16.319,110.7427]
[1673388897227,245.63,16.336,16.318,43.42382852]
[1673388898169,45.93,16.336,16.319,5.9421157]
[1673388898385,45.92,16.342,16.319,5.9421157]
[1673388898693,45.92,16.342,16.32,43.42382852]
[1673388899230,182.7,16.341,16.321,5.9421157]
[1673388899432,45.92,16.34,16.321,5.9421157]
[1673388899645,17.0,16.339,16.321,5.9421157]
[1673388899855,45.93,16.338,16.321,5.9421157]
[1673388900064,17.0,16.337,16.321,5.9421157]
[1673388900390,45.93,16.336,16.322,20.0]
[1673388900591,17.0,16.335,16.322,20.0]
[1673388900794,45.94,16.334,16.323,5.9421157]
[1673388901227,45.94,16.335,16.323,5.9421157]
[1673388901446,17.0,16.334,16.323,5.9421157]
[1673388901655,45.94,16.333,16.323,5.9421157]
[1673388902701,45.92,16.342,16.323,5.9421157]
[1673388904899,17.0,16.341,16.323,5.9421157]
[1673388905104,45.92,16.34,16.323,5.9421157]
[1673388905317,17.0,16.339,16.323,5.9421157]
[1673388905532,45.93,16.338,16.323,5.9421157]
[1673388906282,45.93,16.338,16.323,49.36594422]
[1673388907946,45.93,16.338,16.323,5.9421157]
[1673388908152,17.0,16.337,16.323,5.9421157]
[1673388908364,45.93,16.336,16.323,5.9421157]
[1673388909009,45.92,16.342,16.323,5.9421157]
[1673388909197,17.0,16.341,16.323,13.0109457]
[1673388909407,45.92,16.34,16.323,56.43477422]
[1673388909618,17.0,16.339,16.323,56.43477422]
[1673388909946,45.93,16.338,16.323,56.43477422]
[1673388910475,17.0,16.337,16.323,56.43477422]
[1673388910700,45.93,16.336,16.323,56.43477422]
[1673388912282,45.92,16.342,16.323,56.43477422]
[1673388912470,17.0,16.341,16.323,56.43477422]
[1673388912680,45.92,16.34,16.323,56.43477422]
[1673388912892,17.0,16.339,16.323,56.43477422]
[1673388913102,17.0,16.339,16.324,5.9421157]
[1673388913103,45.93,16.338,16.324,5.9421157]
[1673388913532,45.92,16.342,16.324,5.9421157]
[1673388914995,17.0,16.341,16.324,5.9421157]
[1673388915327,45.92,16.34,16.324,5.9421157]
[1673388915546,17.0,16.339,16.324,5.9421157]
[1673388915730,45.93,16.338,16.324,5.9421157]
[1673388916588,17.0,16.337,16.323,56.43477422]
[1673388916801,45.93,16.336,16.323,56.43477422]
[1673388916997,17.0,16.335,16.323,50.49265852]
[1673388917208,45.94,16.334,16.323,43.42382852]
[1673388917418,45.94,16.334,16.322,20.0]
[1673388917630,17.0,16.333,16.319,20.0]
[1673388917831,45.95,16.332,16.319,63.42382852]
[1673388918046,17.0,16.331,16.319,63.42382852]
[1673388918256,45.95,16.33,16.319,63.42382852]
[1673388918683,295.8944,16.343,16.32,43.42382852]
[1673388918684,113.1944,16.343,16.32,43.42382852]
[1673388919120,113.1944,16.343,16.321,63.42240729]
[1673388919326,45.92,16.342,16.321,63.42240729]
[1673388919512,45.92,16.342,16.322,43.42382852]
[1673388919723,45.92,16.342,16.323,27.06883]
[1673388919929,45.92,16.342,16.324,24.0684]
[1673388920164,45.92,16.342,16.325,137.44267]
[1673388920362,45.92,16.342,16.325,186.80861422]
[1673388920574,45.92,16.342,16.325,180.86649852]
[1673388920784,45.92,16.342,16.326,124.7140157]
[1673388920989,17.0,16.341,16.327,20.0]
[1673388921197,45.92,16.34,16.327,25.9421157]
[1673388921429,45.92,16.34,16.328,5.9421157]
[1673388921617,45.92,16.34,16.329,20.0]
[1673388921836,17.0,16.339,16.329,20.0]
[1673388922588,17.0,16.339,16.327,20.0]
[1673388923747,17.0,16.339,16.326,5.9421157]
[1673388923957,45.93,16.338,16.325,43.42382852]
[1673388924171,17.0,16.337,16.325,43.42382852]
[1673388924479,45.93,16.336,16.325,43.42382852]
[1673388924694,17.0,16.335,16.325,43.42382852]
[1673388925748,45.94,16.334,16.319,5.9421157]
[1673388925948,45.94,16.334,16.324,5.9421157]
[1673388926147,45.92,16.342,16.324,5.9421157]
[1673388926362,45.92,16.342,16.324,49.36594422]
[1673388926775,45.92,16.342,16.325,5.9421157]
[1673388927527,17.0,16.341,16.325,5.9421157]
[1673388927740,45.92,16.34,16.325,5.9421157]
[1673388927945,17.0,16.339,16.325,5.9421157]
[1673388928154,45.93,16.338,16.325,5.9421157]
[1673388928349,17.0,16.337,16.325,5.9421157]
[1673388928560,45.93,16.336,16.325,5.9421157]
[1673388929720,45.92,16.342,16.325,5.9421157]
[1673388929929,17.0,16.341,16.325,5.9421157]
[1673388930141,45.92,16.34,16.325,5.9421157]
[1673388930351,17.0,16.339,16.325,5.9421157]
[1673388930562,45.93,16.338,16.325,5.9421157]
[1673388930778,17.0,16.337,16.325,5.9421157]
[1673388930990,45.93,16.336,16.325,5.9421157]
[1673388931837,17.0,16.337,16.325,5.9421157]
[1673388932054,45.93,16.336,16.325,5.9421157]
[1673388932361,17.0,16.335,16.325,5.9421157]
[1673388932767,17.0,16.335,16.324,43.42382852]
[1673388934150,45.94,16.334,16.324,43.42382852]
[1673388934469,45.92,16.341,16.325,5.9421157]
[1673388934669,45.92,16.342,16.325,5.9421157]
[1673388935939,17.0,16.341,16.325,5.9421157]
[1673388936162,45.92,16.34,16.325,5.9421157]
[1673388936358,17.0,16.339,16.325,5.9421157]
[1673388936552,45.93,16.338,16.324,43.42382852]
[1673388936757,17.0,16.337,16.324,43.42382852]
[1673388936987,45.93,16.336,16.324,43.42382852]
[1673388937193,17.0,16.335,16.324,43.42382852]
[1673388937419,17.0,16.335,16.322,5.9421157]
[1673388939823,17.0,16.335,16.32,86.84623581]
[1673388939824,45.94,16.334,16.32,86.84623581]
[1673388940030,17.0,16.333,16.321,20.0]
[1673388946448,17.0,16.333,16.322,5.9421157]
[1673388946659,45.95,16.332,16.322,5.9421157]
[1673388946870,17.0,16.331,16.321,20.0]
[1673388947083,17.0,16.331,16.322,5.9421157]
[1673388947394,45.93,16.339,16.322,5.9421157]
[1673388947604,45.92,16.342,16.322,5.9421157]
[1673388948444,45.83184056,16.342,16.322,5.9421157]
[1673388950022,17.0,16.341,16.322,5.9421157]
[1673388950341,45.92,16.34,16.322,5.9421157]
[1673388950531,17.0,16.339,16.322,5.9421157]
[1673388950742,45.93,16.338,16.322,5.9421157]
[1673388950953,17.0,16.337,16.322,5.9421157]
[1673388951266,45.93,16.336,16.322,5.9421157]
[1673388952557,45.92,16.342,16.322,5.9421157]
[1673388952744,17.0,16.341,16.322,13.0113757]
[1673388953072,45.92,16.34,16.322,13.0113757]
[1673388953281,17.0,16.339,16.322,13.0113757]
[1673388953494,45.93,16.338,16.322,13.0113757]
[1673388953703,17.0,16.337,16.322,13.0113757]
[1673388953915,45.93,16.336,16.322,13.0113757]
[1673388955070,45.93,16.336,16.323,5.9421157]
[1673388956522,45.92,16.342,16.323,5.9421157]
[1673388956732,17.0,16.341,16.323,5.9421157]
[1673388956955,45.92,16.34,16.323,5.9421157]
[1673388957163,17.0,16.339,16.323,5.9421157]
[1673388957369,45.93,16.338,16.323,5.9421157]
[1673388957579,17.0,16.337,16.323,5.9421157]
[1673388957788,45.93,16.336,16.323,5.9421157]
[1673388960324,45.93,16.336,16.324,20.0]
[1673388960728,45.93,16.336,16.325,5.9421157]
[1673388960953,45.93,16.336,16.324,20.0]
[1673388961153,45.93,16.336,16.325,5.9421157]
[1673388961368,45.92,16.342,16.326,20.0]
[1673388961696,45.92,16.342,16.327,5.9421157]
[1673388962210,45.92,16.342,16.328,20.0]
[1673388962532,45.92,16.342,16.328,25.9421157]
[1673388963167,17.0,16.341,16.328,25.9421157]
[1673388963359,45.92,16.34,16.328,25.9421157]
[1673388963695,17.0,16.339,16.328,25.9421157]
[1673388963996,45.93,16.338,16.328,25.9421157]
[1673388968836,45.93,16.338,16.328,20.0]
[1673388969053,45.93,16.338,16.328,25.9421157]
[1673388969253,45.93,16.338,16.328,5.9421157]
[1673388969464,45.93,16.338,16.329,20.0]
[1673388971258,45.93,16.338,16.323,39.66249536]
[1673388971467,17.0,16.337,16.323,39.66249536]
[1673388971658,17.0,16.337,16.326,5.94628683]
[1673388971659,45.93,16.336,16.326,5.94628683]